{"text_format":"1","workbook":"xlsx","n_sheets":1,"sheets":["Потребность"],"not_rendered":{"charts":0,"images":0,"macros":0,"external_links":0,"defined_names":0,"comments":0,"pivot_tables":0},"unopened":[],"bounds":{"document_bytes":16777216,"sheet_cells":100000,"rows_first":2000,"rows_last":500,"rows_between":2000,"halvings":0,"cell_chars":16384,"cell_head_chars":4096},"cells_cut":0,"cells_raw":0,"read":"whole","date_system":"1900"}

{"sheet":"Потребность","index":0,"n_rows":84,"n_cols":4,"rows_kept":84,"cut":false,"hidden":false,"merged":[[1,1,2,6],[19,0,25,0],[26,0,32,0],[33,0,39,0],[40,0,46,0],[4,0,4,1],[83,0,83,1],[5,0,11,0],[54,0,60,0],[61,0,67,0],[68,0,75,0],[76,0,82,0],[12,0,18,0],[47,0,53,0]]}
[]
[null,"СВЕДЕНИЯ О ПОТРЕБНОСТИ В СПЕЦИАЛИСТАХ СО СРЕДНИМ СПЕЦИАЛЬНЫМ  МЕДИЦИНСКИМ, ФАРМАЦЕВТИЧЕСКИМ  ОБРАЗОВАНИЕМ Могилевской области на 2023 год"]
[]
[]
["наименование должности",null,"фельдшер-лаборант (старший)","Итого медицинских работников"]
["Потребность в специалистах со средним образованием","Белыничская  ЦРБ",2,{"$f":"SUM(C6:C6)","v":2}]
[null,"Быховская ЦРБ",null,0]
[null,"Глусская ЦРБ",1,1]
[null,"Горецкая ЦРБ ",1,1]
[null,"Дрибинская ЦРБ",null,0]
[null,"Кировская ЦРБ",1,1]
[null,"Климовичская ЦРБ",1,1]
["Потребность в специалистах со средним образованием","Кличевская ЦРБ",5,5]
[null,"Костюковичская ЦРБ",null,0]
[null,"Краснопольская ЦРБ",null,0]
[null,"Кричевская ЦРБ",2,2]
[null,"Круглянская ЦРБ",1,1]
[null,"Мстиславская ЦРБ",2,2]
[null,"Осиповичская ЦРБ",3,3]
["Потребность в специалистах со средним образованием","Славгородская ЦРБ",null,0]
[null,"Хотимская ЦРБ",1,1]
[null,"Чаусская ЦРБ",2,2]
[null,"Чериковская ЦРБ",null,0]
[null,"Шкловская ЦРБ",3,3]
[null,"МОКБ",1,1]
[null,"МОДБ",2,2]
["Потребность в специалистах со средним образованием","МОПБ",null,0]
[null,"госпИОВ",null,0]
[null,"МОПТД",1,1]
[null,"МОКВД",3,3]
[null,"МООД",4,4]
[null,"МОНД",null,0]
[null,"МОЛДЦ",null,0]
["Потребность в специалистах со средним образованием","МОСП",null,0]
[null,"МОДСП",null,0]
[null,"МОСПК",1,1]
[null,"Космос",null,0]
[null,"пат бюро",4,{"$f":"SUM(C38:C38)","v":4}]
[null,"МРЭК",null,0]
[null,"МОБМР",1,1]
["Потребность в специалистах со средним образованием","УЗ \"Могилевская центральная поликлиника\"",null,0]
[null,"УЗ \"Могилевская  поликлиника № 2\"",null,0]
[null,"УЗ \"Могилевская  поликлиника № 3\"",2,2]
[null,"УЗ \"Могилевская  поликлиника № 4\"",null,0]
[null,"УЗ \"Могилевская  поликлиника № 5\"",1,1]
[null,"УЗ \"Могилевская  поликлиника № 6\"",null,0]
[null,"УЗ \"Могилевская  поликлиника № 7\"",2,2]
["Потребность в специалистах со средним образованием","УЗ \"Могилевская  поликлиника № 8\"",1,1]
[null,"УЗ \"Могилевская  поликлиника № 9\"",1,1]
[null,"УЗ \"Могилевская  поликлиника №10\"",2,2]
[null,"УЗ \"Могилевская  поликлиника №11\"",2,2]
[null,"УЗ \"Могилевская  поликлиника №12\"",1,1]
[null,"УЗ \"Могилевская детская поликлиника\"",null,0]
[null,"УЗ \"Могилевская детская  поликлиника № 1\"",null,0]
["Потребность в специалистах со средним образованием","УЗ \"Могилевская детская  поликлиника № 2\"",1,1]
[null,"УЗ \"Могилевская детская  поликлиника № 4\"",null,0]
[null,"УЗ \"Могилевская  стоматологическая поликлиника\"",null,0]
[null,"УЗ \"Могилевская  стоматологическая поликлиника № 2\"",null,0]
[null,"УЗ \"Могилевская  детская стоматологическая поликлиника\"",null,0]
[null,"УЗ \"Могилевская городская станция СМП\"",null,0]
[null,"УЗ \"Могилевский Дом ребенка\"",null,0]
["Потребность в специалистах со средним образованием","МГБ СМП",5,5]
[null,"МБ № 1",6,6]
[null,"МИБ",null,0]
[null,"БЦБ",null,0]
[null,"БГБСМП",2,2]
[null,"БГДБ",2,2]
[null,"БРД",1,1]
["Потребность в специалистах со средним образованием","БМОД",1,1]
[null,"БССНП",null,{"$f":"SUM(C70:C70)","v":0}]
[null,"БЗСПК",1,1]
[null,"БГП 1",3,3]
[null,"БГП 2",2,2]
[null,"БГП 3",1,1]
[null,"БГП 4",null,0]
[null,"БГП 5",null,0]
["Потребность в специалистах со средним образованием","БГП 6",2,2]
[null,"БГП 7",null,0]
[null,"БГСП 1",null,0]
[null,"БСП 2",null,0]
[null,"БДСП",null,0]
[null,"КУП",null,0]
[null,"наименование учреждения здравоохранения",null,0]
["ИТОГО по региону:",null,{"$f":"SUM(C6:C83)","v":81},81]